[Event "Titled Tuesday Blitz February 07 Early 2023"]
[White "Poliakova, Varvara"]
[Black "Kozak, Adam"]
[WhiteFideId "13518313"]
[BlackFideId "753246"]
[WhiteElo "2010"]
[BlackElo "2572"]
[Result "0-1"]
[Round "06"]
[TimeControl "180+2"]
[Date "2023.02.07"]
[WhiteClock "0:00:44"]
[BlackClock "0:00:08"]

1. e4 {[%clk 0:03:00]}  e5 {[%clk 0:02:41]} 2. Nf3 {[%clk 0:03:00]}  Nc6 {[%clk 0:02:41]} 3. Bc4 {[%clk 0:03:00]}  Bc5 {[%clk 0:02:40]} 4. d3 {[%clk 0:03:00]}  Nf6 {[%clk 0:02:40]} 5. c3 {[%clk 0:03:00]}  a5 {[%clk 0:02:38]} 6. a4 {[%clk 0:02:59]}  d6 {[%clk 0:02:38]} 7. Bb3 {[%clk 0:02:58]}  h6 {[%clk 0:02:38]} 8. Nbd2 {[%clk 0:02:57]}  Qe7 {[%clk 0:02:38]} 9. Nf1 {[%clk 0:02:57]}  Bg4 {[%clk 0:02:38]} 10. Ng3 {[%clk 0:02:57]}  O-O-O {[%clk 0:02:35]} 11. Be3 {[%clk 0:02:54]}  Bxe3 {[%clk 0:02:34]} 12. fxe3 {[%clk 0:02:55]}  d5 {[%clk 0:02:34]} 13. exd5 {[%clk 0:02:50]}  Nxd5 {[%clk 0:02:35]} 14. Qe2 {[%clk 0:02:47]}  f5 {[%clk 0:02:20]} 15. O-O {[%clk 0:02:43]}  e4 {[%clk 0:02:13]} 16. Bxd5 {[%clk 0:02:26]}  Rxd5 {[%clk 0:02:09]} 17. dxe4 {[%clk 0:02:26]}  fxe4 {[%clk 0:02:10]} 18. Qc4 {[%clk 0:02:26]}  Rdd8 {[%clk 0:01:36]} 19. Qxe4 {[%clk 0:02:21]}  Qxe4 {[%clk 0:01:35]} 20. Nxe4 {[%clk 0:02:22]}  Rhe8 {[%clk 0:01:34]} 21. Nfd2 {[%clk 0:02:10]}  Bh5 {[%clk 0:01:26]} 22. Rf4 {[%clk 0:02:07]}  Ne5 {[%clk 0:01:21]} 23. Raf1 {[%clk 0:01:57]}  Nd3 {[%clk 0:01:16]} 24. Rh4 {[%clk 0:01:58]}  Bg6 {[%clk 0:01:13]} 25. Rg4 {[%clk 0:01:51]}  Ne5 {[%clk 0:01:03]} 26. Rgf4 {[%clk 0:01:49]}  Bh7 {[%clk 0:01:02]} 27. b4 {[%clk 0:01:39]}  Nd3 {[%clk 0:00:50]} 28. Rg4 {[%clk 0:01:38]}  g5 {[%clk 0:00:50]} 29. Nf6 {[%clk 0:01:37]}  Ne5 {[%clk 0:00:48]} 30. Rd4 {[%clk 0:01:35]}  Re7 {[%clk 0:00:40]} 31. Rxd8+ {[%clk 0:01:33]}  Kxd8 {[%clk 0:00:41]} 32. Nxh7 {[%clk 0:01:32]}  Rxh7 {[%clk 0:00:42]} 33. bxa5 {[%clk 0:01:31]}  Nc6 {[%clk 0:00:30]} 34. a6 {[%clk 0:01:31]}  bxa6 {[%clk 0:00:29]} 35. Ne4 {[%clk 0:01:31]}  Re7 {[%clk 0:00:26]} 36. Rf8+ {[%clk 0:01:31]}  Kd7 {[%clk 0:00:26]} 37. Nf6+ {[%clk 0:01:31]}  Kd6 {[%clk 0:00:23]} 38. e4 {[%clk 0:01:29]}  Re6 {[%clk 0:00:18]} 39. Ng4 {[%clk 0:01:17]}  Rxe4 {[%clk 0:00:16]} 40. Nxh6 {[%clk 0:01:18]}  Rxa4 {[%clk 0:00:16]} 41. Ra8 {[%clk 0:01:16]}  a5 {[%clk 0:00:15]} 42. Nf7+ {[%clk 0:01:16]}  Kc5 {[%clk 0:00:13]} 43. Nxg5 {[%clk 0:01:17]}  Rc4 {[%clk 0:00:09]} 44. h4 {[%clk 0:01:15]}  Rxh4 {[%clk 0:00:08]} 45. Kf2 {[%clk 0:01:11]}  Rc4 {[%clk 0:00:07]} 46. Nf3 {[%clk 0:01:11]}  Rxc3 {[%clk 0:00:07]} 47. g4 {[%clk 0:01:10]}  Kb6 {[%clk 0:00:06]} 48. g5 {[%clk 0:01:10]}  Kb7 {[%clk 0:00:06]} 49. Re8 {[%clk 0:01:08]}  a4 {[%clk 0:00:06]} 50. g6 {[%clk 0:01:08]}  a3 {[%clk 0:00:05]} 51. g7 {[%clk 0:01:07]}  a2 {[%clk 0:00:05]} 52. Re1 {[%clk 0:01:00]}  Ne7 {[%clk 0:00:05]} 53. Ra1 {[%clk 0:00:54]}  Ra3 {[%clk 0:00:05]} 54. Nd4 {[%clk 0:00:45]}  Ra8 {[%clk 0:00:04]} 55. Ne2 {[%clk 0:00:45]}  Rg8 {[%clk 0:00:04]} 56. Rxa2 {[%clk 0:00:45]}  Rxg7 {[%clk 0:00:04]} 57. Rb2+ {[%clk 0:00:45]}  Kc8 {[%clk 0:00:05]} 58. Ke3 {[%clk 0:00:46]}  Nd5+ {[%clk 0:00:04]} 59. Kd4 {[%clk 0:00:47]}  Rd7 {[%clk 0:00:04]} 60. Kc5 {[%clk 0:00:46]}  Ne7 {[%clk 0:00:03]} 61. Nc3 {[%clk 0:00:46]}  Rd6 {[%clk 0:00:03]} 62. Rh2 {[%clk 0:00:45]}  Rc6+ {[%clk 0:00:03]} 63. Kb4 {[%clk 0:00:45]}  Rb6+ {[%clk 0:00:03]} 64. Kc5 {[%clk 0:00:45]}  Rc6+ {[%clk 0:00:03]} 65. Kb5 {[%clk 0:00:46]}  Rxc3 {[%clk 0:00:02]} 66. Rh8+ {[%clk 0:00:45]}  Kd7 {[%clk 0:00:02]} 67. Rh5 {[%clk 0:00:44]}  Rc6 {[%clk 0:00:03]} 68. Rh8 {[%clk 0:00:44]}  Rd6 {[%clk 0:00:03]} 69. Rh2 {[%clk 0:00:44]}  Rb6+ {[%clk 0:00:04]} 70. Kc5 {[%clk 0:00:44]}  Re6 {[%clk 0:00:05]} 71. Rd2+ {[%clk 0:00:44]}  Rd6 {[%clk 0:00:05]} 72. Rh2 {[%clk 0:00:44]}  Rd5+ {[%clk 0:00:06]} 73. Kc4 {[%clk 0:00:44]}  c6 {[%clk 0:00:06]} 74. Rh7 {[%clk 0:00:43]}  Re5 {[%clk 0:00:06]} 75. Rh6 {[%clk 0:00:43]}  Re6 {[%clk 0:00:06]} 76. Rh7 {[%clk 0:00:43]}  Kd6 {[%clk 0:00:07]} 77. Rh8 {[%clk 0:00:44]}  Re4+ {[%clk 0:00:07]} 78. Kd3 {[%clk 0:00:45]}  Rf4 {[%clk 0:00:07]} 79. Rh6+ {[%clk 0:00:44]}  Kc5 {[%clk 0:00:07]} 80. Rh5+ {[%clk 0:00:44]}  Nd5 {[%clk 0:00:08]} 0-1


[Site "https://www.chess.com"]

[Event "Titled Tuesday Blitz February 07 Early 2023"]
[White "Alinasab, Mobina"]
[Black "Harsha Bharathakoti"]
[WhiteFideId "12528897"]
[BlackFideId "5078776"]
[WhiteElo "2347"]
[BlackElo "2602"]
[Result "0-1"]
[Round "06"]
[TimeControl "180+2"]
[Date "2023.02.07"]
[WhiteClock "0:00:01"]
[BlackClock "0:00:33"]

1. e4 {[%clk 0:03:00]}  g6 {[%clk 0:03:00]} 2. d4 {[%clk 0:02:59]}  Bg7 {[%clk 0:03:00]} 3. Nc3 {[%clk 0:02:59]}  d6 {[%clk 0:03:01]} 4. Be3 {[%clk 0:02:54]}  a6 {[%clk 0:03:01]} 5. a4 {[%clk 0:02:50]}  Nf6 {[%clk 0:02:59]} 6. f3 {[%clk 0:02:49]}  Nc6 {[%clk 0:02:54]} 7. Qd2 {[%clk 0:02:49]}  e5 {[%clk 0:02:45]} 8. Nge2 {[%clk 0:02:24]}  exd4 {[%clk 0:02:36]} 9. Nxd4 {[%clk 0:02:25]}  O-O {[%clk 0:02:37]} 10. Nxc6 {[%clk 0:02:12]}  bxc6 {[%clk 0:02:35]} 11. Bc4 {[%clk 0:01:56]}  Re8 {[%clk 0:02:15]} 12. O-O {[%clk 0:01:51]}  d5 {[%clk 0:02:11]} 13. exd5 {[%clk 0:01:47]}  cxd5 {[%clk 0:02:12]} 14. Nxd5 {[%clk 0:00:42]}  Rxe3 {[%clk 0:02:07]} 15. Qxe3 {[%clk 0:00:43]}  Nxd5 {[%clk 0:02:07]} 16. Bxd5 {[%clk 0:00:44]}  Qxd5 {[%clk 0:02:07]} 17. Rad1 {[%clk 0:00:40]}  Qe6 {[%clk 0:01:42]} 18. Rd8+ {[%clk 0:00:37]}  Bf8 {[%clk 0:01:42]} 19. Qc5 {[%clk 0:00:16]}  Qd6 {[%clk 0:01:36]} 20. Rxd6 {[%clk 0:00:14]}  Bxd6 {[%clk 0:01:37]} 21. Qc6 {[%clk 0:00:13]}  Rb8 {[%clk 0:01:37]} 22. Qe8+ {[%clk 0:00:12]}  Kg7 {[%clk 0:01:37]} 23. b3 {[%clk 0:00:11]}  Ra8 {[%clk 0:01:36]} 24. Qc6 {[%clk 0:00:10]}  Rb8 {[%clk 0:01:36]} 25. Re1 {[%clk 0:00:11]}  Bb7 {[%clk 0:01:36]} 26. Qc3+ {[%clk 0:00:11]}  Kg8 {[%clk 0:01:36]} 27. Qf6 {[%clk 0:00:10]}  a5 {[%clk 0:01:28]} 28. Qd4 {[%clk 0:00:07]}  Bc6 {[%clk 0:01:20]} 29. Qd3 {[%clk 0:00:06]}  Bd7 {[%clk 0:01:19]} 30. c4 {[%clk 0:00:05]}  Bf5 {[%clk 0:01:19]} 31. Qe2 {[%clk 0:00:05]}  Rxb3 {[%clk 0:01:15]} 32. Qd1 {[%clk 0:00:04]}  Rb4 {[%clk 0:01:12]} 33. Re8+ {[%clk 0:00:02]}  Kg7 {[%clk 0:01:13]} 34. Qd4+ {[%clk 0:00:02]}  f6 {[%clk 0:01:06]} 35. Qd5 {[%clk 0:00:02]}  Rb1+ {[%clk 0:01:02]} 36. Kf2 {[%clk 0:00:03]}  Rb2+ {[%clk 0:01:03]} 37. Kf1 {[%clk 0:00:03]}  Bxh2 {[%clk 0:00:49]} 38. Re7+ {[%clk 0:00:02]}  Kh6 {[%clk 0:00:49]} 39. Qf7 {[%clk 0:00:01]}  Bg3 {[%clk 0:00:33]} 0-1


[Site "https://www.chess.com"]

[Event "Titled Tuesday Blitz February 07 Early 2023"]
[White "Hirneise, Jens"]
[Black "Vakhlamov, Igor L."]
[WhiteFideId "24614734"]
[BlackFideId "24126748"]
[WhiteElo "2277"]
[BlackElo "2413"]
[Result "0-1"]
[Round "06"]
[TimeControl "180+2"]
[Date "2023.02.07"]
[WhiteClock "0:00:34"]
[BlackClock "0:00:51"]

1. Nf3 {[%clk 0:03:00]}  Nf6 {[%clk 0:02:59]} 2. c3 {[%clk 0:03:00]}  d5 {[%clk 0:02:57]} 3. d4 {[%clk 0:03:01]}  Bf5 {[%clk 0:02:57]} 4. Bf4 {[%clk 0:03:01]}  e6 {[%clk 0:02:58]} 5. Nbd2 {[%clk 0:03:01]}  Bd6 {[%clk 0:02:58]} 6. e3 {[%clk 0:02:58]}  O-O {[%clk 0:02:58]} 7. Be2 {[%clk 0:02:58]}  c5 {[%clk 0:02:57]} 8. Bg3 {[%clk 0:02:58]}  Nc6 {[%clk 0:02:57]} 9. Ne5 {[%clk 0:02:53]}  Bxe5 {[%clk 0:02:54]} 10. dxe5 {[%clk 0:02:53]}  Nd7 {[%clk 0:02:54]} 11. f4 {[%clk 0:02:54]}  c4 {[%clk 0:02:41]} 12. Nf3 {[%clk 0:02:51]}  Nc5 {[%clk 0:02:38]} 13. O-O {[%clk 0:02:49]}  Nd3 {[%clk 0:02:34]} 14. Qd2 {[%clk 0:02:47]}  b5 {[%clk 0:02:31]} 15. Nd4 {[%clk 0:02:46]}  Nxd4 {[%clk 0:02:32]} 16. exd4 {[%clk 0:02:44]}  a5 {[%clk 0:02:30]} 17. Rfd1 {[%clk 0:02:21]}  b4 {[%clk 0:02:29]} 18. Bxd3 {[%clk 0:02:20]}  Bxd3 {[%clk 0:02:28]} 19. cxb4 {[%clk 0:02:19]}  axb4 {[%clk 0:02:16]} 20. Qxb4 {[%clk 0:02:19]}  Ra6 {[%clk 0:02:00]} 21. a4 {[%clk 0:02:04]}  Qa8 {[%clk 0:01:59]} 22. a5 {[%clk 0:02:00]}  Rb8 {[%clk 0:01:57]} 23. Qd2 {[%clk 0:01:58]}  Be4 {[%clk 0:01:22]} 24. Be1 {[%clk 0:01:54]}  Rb3 {[%clk 0:01:21]} 25. Ra3 {[%clk 0:01:41]}  c3 {[%clk 0:01:14]} 26. Qf2 {[%clk 0:01:09]}  Rxb2 {[%clk 0:01:08]} 27. Qe3 {[%clk 0:00:54]}  Rxg2+ {[%clk 0:01:04]} 28. Kf1 {[%clk 0:00:54]}  Rxa5 {[%clk 0:00:59]} 29. Rxc3 {[%clk 0:00:37]}  Qa6+ {[%clk 0:00:58]} 30. Rdd3 {[%clk 0:00:34]}  Raa2 {[%clk 0:00:51]} 0-1


[Site "https://www.chess.com"]

[Event "Titled Tuesday Blitz February 07 Early 2023"]
[White "Kosakowski, Jakub"]
[Black "Ozates, Tuna"]
[WhiteFideId "1185080"]
[BlackFideId "6354521"]
[WhiteElo "2485"]
[BlackElo "2251"]
[Result "1-0"]
[Round "06"]
[TimeControl "180+2"]
[Date "2023.02.07"]
[WhiteClock "0:02:02"]
[BlackClock "0:02:12"]

1. e4 {[%clk 0:02:17]}  c5 {[%clk 0:02:58]} 2. Nf3 {[%clk 0:02:17]}  Nc6 {[%clk 0:02:58]} 3. Bb5 {[%clk 0:02:17]}  g6 {[%clk 0:02:58]} 4. O-O {[%clk 0:02:17]}  Bg7 {[%clk 0:02:57]} 5. Re1 {[%clk 0:02:18]}  e5 {[%clk 0:02:55]} 6. c3 {[%clk 0:02:17]}  Nge7 {[%clk 0:02:53]} 7. d4 {[%clk 0:02:17]}  exd4 {[%clk 0:02:53]} 8. cxd4 {[%clk 0:02:18]}  cxd4 {[%clk 0:02:52]} 9. Bf4 {[%clk 0:02:17]}  d5 {[%clk 0:02:53]} 10. exd5 {[%clk 0:02:15]}  Qxd5 {[%clk 0:02:51]} 11. Nc3 {[%clk 0:02:15]}  Qf5 {[%clk 0:02:43]} 12. Nxd4 {[%clk 0:02:13]}  Bxd4 {[%clk 0:02:29]} 13. Bxc6+ {[%clk 0:02:06]}  bxc6 {[%clk 0:02:22]} 14. Qxd4 {[%clk 0:02:06]}  O-O {[%clk 0:02:12]} 15. Rxe7 {[%clk 0:02:04]}  Be6 {[%clk 0:02:12]} 16. Bh6 {[%clk 0:02:02]} 1-0


[Site "https://www.chess.com"]

[Event "Titled Tuesday Blitz February 07 Early 2023"]
[White "Tan, Zhongyi"]
[Black "Kumala, Aleksander"]
[WhiteFideId "8603642"]
[BlackFideId "1141880"]
[WhiteElo "2517"]
[BlackElo "2165"]
[Result "0-1"]
[Round "06"]
[TimeControl "180+2"]
[Date "2023.02.07"]
[WhiteClock "0:00:09"]
[BlackClock "0:00:18"]

1. d4 {[%clk 0:03:00]}  Nf6 {[%clk 0:02:59]} 2. c4 {[%clk 0:03:00]}  Nc6 {[%clk 0:02:59]} 3. Nc3 {[%clk 0:02:49]}  e5 {[%clk 0:02:59]} 4. d5 {[%clk 0:02:42]}  Ne7 {[%clk 0:02:59]} 5. h4 {[%clk 0:02:36]}  Neg8 {[%clk 0:02:59]} 6. e4 {[%clk 0:02:33]}  Bc5 {[%clk 0:02:57]} 7. Bd3 {[%clk 0:02:26]}  a6 {[%clk 0:02:50]} 8. Qe2 {[%clk 0:02:19]}  d6 {[%clk 0:02:50]} 9. f3 {[%clk 0:02:18]}  Nh5 {[%clk 0:02:41]} 10. g4 {[%clk 0:01:54]}  Ng3 {[%clk 0:02:39]} 11. Qg2 {[%clk 0:01:54]}  Nxh1 {[%clk 0:02:39]} 12. Qxh1 {[%clk 0:01:55]}  Bxg1 {[%clk 0:02:25]} 13. Qxg1 {[%clk 0:01:56]}  Qxh4+ {[%clk 0:02:25]} 14. Kd1 {[%clk 0:01:56]}  h5 {[%clk 0:02:14]} 15. g5 {[%clk 0:01:55]}  Ne7 {[%clk 0:02:14]} 16. Be3 {[%clk 0:01:53]}  Ng6 {[%clk 0:02:09]} 17. Ne2 {[%clk 0:01:46]}  Qh3 {[%clk 0:01:59]} 18. Qf2 {[%clk 0:01:22]}  Qh1+ {[%clk 0:01:52]} 19. Ng1 {[%clk 0:01:22]}  Nf4 {[%clk 0:01:46]} 20. Kc2 {[%clk 0:01:13]}  Qg2 {[%clk 0:01:39]} 21. Rf1 {[%clk 0:01:06]}  Qxf2+ {[%clk 0:01:37]} 22. Rxf2 {[%clk 0:01:06]}  Nxd3 {[%clk 0:01:31]} 23. Kxd3 {[%clk 0:01:07]}  g6 {[%clk 0:01:30]} 24. f4 {[%clk 0:01:06]}  exf4 {[%clk 0:01:28]} 25. Bd4 {[%clk 0:01:04]}  O-O {[%clk 0:01:23]} 26. Rxf4 {[%clk 0:01:03]}  Bg4 {[%clk 0:01:24]} 27. Nf3 {[%clk 0:00:58]}  Bxf3 {[%clk 0:01:24]} 28. Rxf3 {[%clk 0:00:59]}  c5 {[%clk 0:01:18]} 29. Bf6 {[%clk 0:00:58]}  Rfe8 {[%clk 0:01:14]} 30. Re3 {[%clk 0:00:55]}  b5 {[%clk 0:01:14]} 31. b3 {[%clk 0:00:52]}  bxc4+ {[%clk 0:01:13]} 32. bxc4 {[%clk 0:00:53]}  Rab8 {[%clk 0:01:14]} 33. e5 {[%clk 0:00:53]}  dxe5 {[%clk 0:01:13]} 34. Ke4 {[%clk 0:00:38]}  Rb2 {[%clk 0:01:08]} 35. d6 {[%clk 0:00:31]}  Rd2 {[%clk 0:01:04]} 36. Rd3 {[%clk 0:00:31]}  Rxd3 {[%clk 0:00:39]} 37. Kxd3 {[%clk 0:00:32]}  Re6 {[%clk 0:00:39]} 38. Bxe5 {[%clk 0:00:32]}  Kf8 {[%clk 0:00:32]} 39. Ke4 {[%clk 0:00:17]}  Ke8 {[%clk 0:00:32]} 40. Kd5 {[%clk 0:00:18]}  Kd7 {[%clk 0:00:31]} 41. Bf4 {[%clk 0:00:15]}  h4 {[%clk 0:00:30]} 42. Kxc5 {[%clk 0:00:16]}  Re4 {[%clk 0:00:28]} 43. Bh2 {[%clk 0:00:12]}  Re2 {[%clk 0:00:27]} 44. Bf4 {[%clk 0:00:11]}  Rf2 {[%clk 0:00:25]} 45. Be5 {[%clk 0:00:09]}  Rf5 {[%clk 0:00:19]} 46. Kd4 {[%clk 0:00:09]}  Rxe5 {[%clk 0:00:20]} 47. Kxe5 {[%clk 0:00:10]}  h3 {[%clk 0:00:20]} 48. c5 {[%clk 0:00:09]}  h2 {[%clk 0:00:20]} 49. Kf6 {[%clk 0:00:08]}  h1=Q {[%clk 0:00:20]} 50. Kxf7 {[%clk 0:00:09]}  Qe4 {[%clk 0:00:19]} 51. Kg7 {[%clk 0:00:09]}  Qf5 {[%clk 0:00:18]} 0-1


[Site "https://www.chess.com"]

[Event "Titled Tuesday Blitz February 07 Early 2023"]
[White "Costachi, Mihnea"]
[Black "Leenhouts, Koen"]
[WhiteFideId "1217518"]
[BlackFideId "1008439"]
[WhiteElo "2476"]
[BlackElo "2447"]
[Result "1-0"]
[Round "06"]
[TimeControl "180+2"]
[Date "2023.02.07"]
[WhiteClock "0:00:05"]
[BlackClock "0:00:06"]

1. Nc3 {[%clk 0:03:00]}  d5 {[%clk 0:02:57]} 2. d4 {[%clk 0:03:00]}  Nf6 {[%clk 0:02:54]} 3. Bf4 {[%clk 0:03:00]}  a6 {[%clk 0:02:51]} 4. e3 {[%clk 0:02:59]}  Bf5 {[%clk 0:02:48]} 5. f3 {[%clk 0:02:59]}  h6 {[%clk 0:02:46]} 6. g4 {[%clk 0:02:59]}  Bh7 {[%clk 0:02:46]} 7. h4 {[%clk 0:03:00]}  e6 {[%clk 0:02:44]} 8. Bd3 {[%clk 0:02:59]}  Bxd3 {[%clk 0:02:43]} 9. Qxd3 {[%clk 0:03:00]}  c5 {[%clk 0:02:42]} 10. dxc5 {[%clk 0:02:55]}  Bxc5 {[%clk 0:02:39]} 11. Nge2 {[%clk 0:02:55]}  Nc6 {[%clk 0:02:37]} 12. O-O-O {[%clk 0:02:52]}  Qa5 {[%clk 0:02:32]} 13. Kb1 {[%clk 0:02:44]}  O-O-O {[%clk 0:02:08]} 14. Nd4 {[%clk 0:02:36]}  Nxd4 {[%clk 0:01:51]} 15. exd4 {[%clk 0:02:35]}  Bd6 {[%clk 0:01:52]} 16. Bxd6 {[%clk 0:02:30]}  Rxd6 {[%clk 0:01:53]} 17. g5 {[%clk 0:02:31]}  Nd7 {[%clk 0:01:45]} 18. g6 {[%clk 0:02:25]}  f6 {[%clk 0:01:41]} 19. Ne2 {[%clk 0:02:23]}  Kb8 {[%clk 0:01:39]} 20. Nf4 {[%clk 0:02:20]}  Rc8 {[%clk 0:01:37]} 21. Nh5 {[%clk 0:02:14]}  Rdc6 {[%clk 0:01:12]} 22. Nxg7 {[%clk 0:01:52]}  Rxc2 {[%clk 0:01:11]} 23. Nxe6 {[%clk 0:01:49]}  Qb6 {[%clk 0:01:05]} 24. Qxc2 {[%clk 0:01:42]}  Rxc2 {[%clk 0:01:06]} 25. Kxc2 {[%clk 0:01:43]}  Qxe6 {[%clk 0:01:05]} 26. Rhg1 {[%clk 0:01:43]}  f5 {[%clk 0:00:53]} 27. Rde1 {[%clk 0:01:24]}  Qc6+ {[%clk 0:00:52]} 28. Kb1 {[%clk 0:01:25]}  Nf6 {[%clk 0:00:52]} 29. g7 {[%clk 0:01:25]}  Ng8 {[%clk 0:00:48]} 30. Re5 {[%clk 0:01:21]}  Qb5 {[%clk 0:00:38]} 31. Rge1 {[%clk 0:01:06]}  Ka7 {[%clk 0:00:34]} 32. Re8 {[%clk 0:01:06]}  Nf6 {[%clk 0:00:34]} 33. Rf8 {[%clk 0:01:03]}  Qd3+ {[%clk 0:00:31]} 34. Ka1 {[%clk 0:01:03]}  Qd2 {[%clk 0:00:17]} 35. Rb1 {[%clk 0:00:57]}  Qg2 {[%clk 0:00:17]} 36. Rxf6 {[%clk 0:00:52]}  Qxg7 {[%clk 0:00:17]} 37. Rxf5 {[%clk 0:00:51]}  Qxd4 {[%clk 0:00:18]} 38. a3 {[%clk 0:00:44]}  a5 {[%clk 0:00:17]} 39. h5 {[%clk 0:00:38]}  a4 {[%clk 0:00:16]} 40. Rc1 {[%clk 0:00:37]}  Qd2 {[%clk 0:00:17]} 41. Rg1 {[%clk 0:00:18]}  d4 {[%clk 0:00:16]} 42. Rd5 {[%clk 0:00:16]}  d3 {[%clk 0:00:16]} 43. f4 {[%clk 0:00:06]}  Qc2 {[%clk 0:00:14]} 44. f5 {[%clk 0:00:04]}  d2 {[%clk 0:00:14]} 45. Rb1 {[%clk 0:00:05]}  Qe4 {[%clk 0:00:11]} 46. Rxd2 {[%clk 0:00:04]}  Qxf5 {[%clk 0:00:11]} 47. Rbd1 {[%clk 0:00:04]}  Qxh5 {[%clk 0:00:11]} 48. Rd5 {[%clk 0:00:05]}  Qe2 {[%clk 0:00:11]} 49. R5d4 {[%clk 0:00:04]}  Qc2 {[%clk 0:00:10]} 50. Re1 {[%clk 0:00:03]}  h5 {[%clk 0:00:10]} 51. Rh1 {[%clk 0:00:04]}  Kb6 {[%clk 0:00:08]} 52. Rb4+ {[%clk 0:00:03]}  Ka7 {[%clk 0:00:07]} 53. Rbh4 {[%clk 0:00:03]}  Qb3 {[%clk 0:00:06]} 54. Rxh5 {[%clk 0:00:04]}  b5 {[%clk 0:00:06]} 55. Rh7+ {[%clk 0:00:04]}  Ka6 {[%clk 0:00:06]} 56. R1h6+ {[%clk 0:00:04]}  Ka5 {[%clk 0:00:06]} 57. Ra7# {[%clk 0:00:05]} 1-0


[Site "https://www.chess.com"]

[Event "Titled Tuesday Blitz February 07 Early 2023"]
[White "Kleiman, Jake"]
[Black "Weetik, Vjacheslav"]
[WhiteFideId "2020041"]
[BlackFideId "4153472"]
[WhiteElo "2399"]
[BlackElo "2423"]
[Result "0-1"]
[Round "06"]
[TimeControl "180+2"]
[Date "2023.02.07"]
[WhiteClock "0:00:25"]
[BlackClock "0:00:12"]

1. e4 {[%clk 0:03:00]}  c6 {[%clk 0:02:56]} 2. d3 {[%clk 0:02:59]}  d5 {[%clk 0:02:56]} 3. Qe2 {[%clk 0:03:00]}  g6 {[%clk 0:02:45]} 4. Nf3 {[%clk 0:02:59]}  Bg7 {[%clk 0:02:45]} 5. g3 {[%clk 0:02:57]}  Nf6 {[%clk 0:02:42]} 6. Bg2 {[%clk 0:02:57]}  O-O {[%clk 0:02:43]} 7. O-O {[%clk 0:02:54]}  Bg4 {[%clk 0:02:37]} 8. Nbd2 {[%clk 0:02:53]}  e5 {[%clk 0:02:29]} 9. h3 {[%clk 0:02:53]}  Bxf3 {[%clk 0:02:28]} 10. Nxf3 {[%clk 0:02:54]}  dxe4 {[%clk 0:02:17]} 11. dxe4 {[%clk 0:02:54]}  Nbd7 {[%clk 0:02:17]} 12. a4 {[%clk 0:02:51]}  a5 {[%clk 0:02:13]} 13. Bd2 {[%clk 0:02:49]}  Qc7 {[%clk 0:02:10]} 14. Bc3 {[%clk 0:02:47]}  Rfe8 {[%clk 0:02:10]} 15. Rfd1 {[%clk 0:02:46]}  Nc5 {[%clk 0:02:10]} 16. Nd2 {[%clk 0:02:37]}  Nfd7 {[%clk 0:01:59]} 17. Nc4 {[%clk 0:02:35]}  Bf8 {[%clk 0:01:58]} 18. b3 {[%clk 0:02:30]}  b6 {[%clk 0:01:47]} 19. Rd2 {[%clk 0:02:29]}  Rad8 {[%clk 0:01:45]} 20. Rad1 {[%clk 0:02:29]}  Bh6 {[%clk 0:01:27]} 21. Rd6 {[%clk 0:02:18]}  Bf8 {[%clk 0:01:14]} 22. R6d2 {[%clk 0:02:07]}  Bh6 {[%clk 0:01:14]} 23. Ne3 {[%clk 0:02:05]}  Ne6 {[%clk 0:01:04]} 24. Rd3 {[%clk 0:01:55]}  Bg7 {[%clk 0:00:50]} 25. Nc4 {[%clk 0:01:47]}  Nd4 {[%clk 0:00:47]} 26. Bxd4 {[%clk 0:01:34]}  exd4 {[%clk 0:00:48]} 27. f4 {[%clk 0:01:34]}  b5 {[%clk 0:00:44]} 28. Nb2 {[%clk 0:01:09]}  Nc5 {[%clk 0:00:42]} 29. R3d2 {[%clk 0:01:10]}  Nxe4 {[%clk 0:00:32]} 30. Bxe4 {[%clk 0:01:09]}  f5 {[%clk 0:00:32]} 31. axb5 {[%clk 0:01:08]}  fxe4 {[%clk 0:00:28]} 32. Qc4+ {[%clk 0:01:07]}  Kh8 {[%clk 0:00:27]} 33. bxc6 {[%clk 0:01:06]}  Rd6 {[%clk 0:00:24]} 34. Na4 {[%clk 0:00:58]}  Rxc6 {[%clk 0:00:24]} 35. Qb5 {[%clk 0:00:59]}  Rb8 {[%clk 0:00:20]} 36. Qd5 {[%clk 0:00:57]}  e3 {[%clk 0:00:18]} 37. Re2 {[%clk 0:00:52]}  Rc8 {[%clk 0:00:17]} 38. Rxd4 {[%clk 0:00:46]}  Rxc2 {[%clk 0:00:17]} 39. Rxe3 {[%clk 0:00:34]}  Bxd4 {[%clk 0:00:15]} 40. Qxd4+ {[%clk 0:00:35]}  Qg7 {[%clk 0:00:15]} 41. Qxg7+ {[%clk 0:00:31]}  Kxg7 {[%clk 0:00:16]} 42. Nb6 {[%clk 0:00:29]}  R8c5 {[%clk 0:00:12]} 43. Nd7 {[%clk 0:00:25]}  Rd5 {[%clk 0:00:12]} 0-1


[Site "https://www.chess.com"]

[Event "Titled Tuesday Blitz February 07 Early 2023"]
[White "Fiorito, Joaquin"]
[Black "Borrmann, Laurenz"]
[WhiteFideId "180173"]
[BlackFideId "312187930"]
[WhiteElo "2405"]
[BlackElo "2304"]
[Result "1-0"]
[Round "06"]
[TimeControl "180+2"]
[Date "2023.02.07"]
[WhiteClock "0:01:34"]
[BlackClock "0:01:54"]

1. d4 {[%clk 0:03:00]}  Nf6 {[%clk 0:02:57]} 2. Nc3 {[%clk 0:03:00]}  d5 {[%clk 0:02:56]} 3. Bf4 {[%clk 0:03:00]}  c5 {[%clk 0:02:53]} 4. e4 {[%clk 0:02:59]}  Nxe4 {[%clk 0:02:42]} 5. Bb5+ {[%clk 0:02:58]}  Nc6 {[%clk 0:02:38]} 6. Nxe4 {[%clk 0:02:58]}  dxe4 {[%clk 0:02:38]} 7. Ne2 {[%clk 0:02:59]}  Bg4 {[%clk 0:02:23]} 8. Bxc6+ {[%clk 0:02:30]}  bxc6 {[%clk 0:02:24]} 9. dxc5 {[%clk 0:02:26]}  Qa5+ {[%clk 0:02:20]} 10. Qd2 {[%clk 0:02:20]}  Qxc5 {[%clk 0:02:15]} 11. Rd1 {[%clk 0:01:35]}  e6 {[%clk 0:01:54]} 12. Qd7# {[%clk 0:01:34]} 1-0


[Site "https://www.chess.com"]

[Event "Titled Tuesday Blitz February 07 Early 2023"]
[White "Ljukin, Sergei"]
[Black "Chernobay, Artem"]
[WhiteFideId "14102200"]
[BlackFideId "4167406"]
[WhiteElo "2362"]
[BlackElo "2484"]
[Result "0-1"]
[Round "06"]
[TimeControl "180+2"]
[Date "2023.02.07"]
[WhiteClock "0:00:29"]
[BlackClock "0:01:32"]

1. e4 {[%clk 0:03:00]}  c5 {[%clk 0:02:58]} 2. Nf3 {[%clk 0:03:00]}  d6 {[%clk 0:02:58]} 3. d4 {[%clk 0:02:59]}  cxd4 {[%clk 0:02:58]} 4. Nxd4 {[%clk 0:03:00]}  Nf6 {[%clk 0:02:58]} 5. Nc3 {[%clk 0:03:00]}  a6 {[%clk 0:02:58]} 6. Bg5 {[%clk 0:03:00]}  Nbd7 {[%clk 0:02:57]} 7. f4 {[%clk 0:03:00]}  Qc7 {[%clk 0:02:53]} 8. Qf3 {[%clk 0:02:58]}  h6 {[%clk 0:02:51]} 9. Bxf6 {[%clk 0:02:58]}  Nxf6 {[%clk 0:02:51]} 10. f5 {[%clk 0:02:58]}  Qc5 {[%clk 0:02:48]} 11. O-O-O {[%clk 0:02:58]}  g5 {[%clk 0:02:48]} 12. g4 {[%clk 0:02:55]}  Bg7 {[%clk 0:02:41]} 13. Nde2 {[%clk 0:02:27]}  Bd7 {[%clk 0:02:26]} 14. h4 {[%clk 0:02:17]}  Bc6 {[%clk 0:02:18]} 15. hxg5 {[%clk 0:02:15]}  hxg5 {[%clk 0:02:19]} 16. Rxh8+ {[%clk 0:02:13]}  Bxh8 {[%clk 0:02:20]} 17. Nd5 {[%clk 0:02:04]}  Rc8 {[%clk 0:02:05]} 18. Nec3 {[%clk 0:02:03]}  b5 {[%clk 0:01:57]} 19. a3 {[%clk 0:01:44]}  a5 {[%clk 0:01:48]} 20. Qd3 {[%clk 0:00:53]}  b4 {[%clk 0:01:40]} 21. Qa6 {[%clk 0:00:29]}  Bxd5 {[%clk 0:01:32]} 0-1


[Site "https://www.chess.com"]